{"text_format":"3","workbook":"xlsx","n_sheets":3,"sheets":["Elevlista","Klasslista","Elevinformation"],"not_rendered":{"images":2,"defined_names":8},"read":"whole","date_system":"1900"}

{"sheet":"Elevlista","index":0,"n_rows":8,"n_cols":13,"rows_kept":8,"merged":[[1,2,2,3],[1,4,1,11],[2,4,2,11],[6,12,8,16]]}
[]
[null,null,"Elevlista",null,"GÅ TILL KLASSLISTA"]
[{"$nulls":4},"GÅ TILL ELEVINFORMATION"]
[null,null,"ELEVENS NAMN","E-POST","TELEFON HEM","MOBILTELEFON","FÖDELSEDATUM","NÖDKONTAKT","TELEFON NÖDFALL","LÄKARE","LÄKARE TELEFON","  "]
[null,null,"Namn 1","E-postadress","Telefon hem","Mobiltelefon","Datum","Kontaktperson 1","Telefon nödfall","Läkare 1","Telefon läkare"]
[null,null,"Namn 2","E-postadress","Telefon hem","Mobiltelefon","Datum","Kontaktperson 2","Telefon nödfall","Läkare 2","Telefon läkare"]
[null,null,"Namn 3","E-postadress","Telefon hem","Mobiltelefon","Datum","Kontaktperson 3","Telefon nödfall","Läkare 3","Telefon läkare",null,"Tips: Tryck på TABB i den sista cellen i tabellen om du vill lägga till flera elever."]
[null,null,"Namn 4","E-postadress","Telefon hem","Mobiltelefon","Datum","Kontaktperson 4","Telefon nödfall","Läkare 4","Telefon läkare"]

{"sheet":"Klasslista","index":1,"n_rows":12,"n_cols":7,"rows_kept":12,"merged":[[1,2,2,2],[1,3,2,3],[1,4,1,6],[2,4,2,6]]}
[]
[null,null,"Klasslista","Institut för grafisk formgivning","GÅ TILL ELEVLISTAN"]
[{"$nulls":4},"GÅ TILL ELEVINFORMATION"]
[null,null,"KURS","Kursens namn","STARTDATUM","Datum"]
[null,null,"HANDLEDARE","Handledare 1","SLUTDATUM","Datum"]
[null,null,"REGISTRERADE ELEVER",{"$f":"COUNTA(_Elevlista[ELEVENS NAMN])","v":4}]
[]
[null,null,"ELEVENS NAMN","E-POST","TELEFON HEM","MOBILTELEFON","  "]
[null,null,"Namn 1",{"$f":"IFERROR(VLOOKUP(_Elevlista[[#This Row],[ELEVENS NAMN]],Elever[],2),\"\")","v":"E-postadress"},{"$f":"IFERROR(VLOOKUP(_Elevlista[[#This Row],[ELEVENS NAMN]],Elever[],3),\"\")","v":"Telefon hem"},{"$f":"IFERROR(VLOOKUP(_Elevlista[[#This Row],[ELEVENS NAMN]],Elever[],4),\"\")","v":"Mobiltelefon"}]
[null,null,"Namn 2",{"$f":"IFERROR(VLOOKUP(_Elevlista[[#This Row],[ELEVENS NAMN]],Elever[],2),\"\")","v":"E-postadress"},{"$f":"IFERROR(VLOOKUP(_Elevlista[[#This Row],[ELEVENS NAMN]],Elever[],3),\"\")","v":"Telefon hem"},{"$f":"IFERROR(VLOOKUP(_Elevlista[[#This Row],[ELEVENS NAMN]],Elever[],4),\"\")","v":"Mobiltelefon"}]
[null,null,"Namn 3",{"$f":"IFERROR(VLOOKUP(_Elevlista[[#This Row],[ELEVENS NAMN]],Elever[],2),\"\")","v":"E-postadress"},{"$f":"IFERROR(VLOOKUP(_Elevlista[[#This Row],[ELEVENS NAMN]],Elever[],3),\"\")","v":"Telefon hem"},{"$f":"IFERROR(VLOOKUP(_Elevlista[[#This Row],[ELEVENS NAMN]],Elever[],4),\"\")","v":"Mobiltelefon"}]
[null,null,"Namn 4",{"$f":"IFERROR(VLOOKUP(_Elevlista[[#This Row],[ELEVENS NAMN]],Elever[],2),\"\")","v":"E-postadress"},{"$f":"IFERROR(VLOOKUP(_Elevlista[[#This Row],[ELEVENS NAMN]],Elever[],3),\"\")","v":"Telefon hem"},{"$f":"IFERROR(VLOOKUP(_Elevlista[[#This Row],[ELEVENS NAMN]],Elever[],4),\"\")","v":"Mobiltelefon"}]

{"sheet":"Elevinformation","index":2,"n_rows":13,"n_cols":4,"rows_kept":13,"merged":[[1,2,2,2],[1,3,1,4],[2,3,2,4],[3,2,3,3]]}
[]
[null,null,"Elevinformation","GÅ TILL ELEVLISTAN"]
[{"$nulls":3},"GÅ TILL KLASSLISTA"]
[null,null,"TIPS: VÄLJ EN ELEV I DEN NEDRULLNINGSBARA LISTAN I CELL D5 OM DU VILL UPPDATERA INFORMATIONEN OM ELEVEN"]
[null,null,"ELEVENS NAMN","Namn 1"]
[null,null,"E-POST",{"$f":"IFERROR(VLOOKUP(Studentnamn,Elever[],2,FALSE),\"\")","v":"E-postadress"}]
[null,null,"TELEFON HEM",{"$f":"IFERROR(VLOOKUP(Studentnamn,Elever[],3,FALSE),\"\")","v":"Telefon hem"}]
[null,null,"MOBILTELEFON",{"$f":"IFERROR(VLOOKUP(Studentnamn,Elever[],4,FALSE),\"\")","v":"Mobiltelefon"}]
[null,null,"FÖDELSEDATUM",{"$f":"IFERROR(VLOOKUP(Studentnamn,Elever[],5,FALSE),\"\")","v":"Datum"}]
[null,null,"NÖDKONTAKT",{"$f":"IFERROR(VLOOKUP(Studentnamn,Elever[],6,FALSE),\"\")","v":"Kontaktperson 1"}]
[null,null,"TELEFON NÖDFALL",{"$f":"IFERROR(VLOOKUP(Studentnamn,Elever[],7,FALSE),\"\")","v":"Telefon nödfall"}]
[null,null,"LÄKARE",{"$f":"IFERROR(VLOOKUP(Studentnamn,Elever[],8,FALSE),\"\")","v":"Läkare 1"}]
[null,null,"LÄKARE TELEFON",{"$f":"IFERROR(VLOOKUP(Studentnamn,Elever[],9,FALSE),\"\")","v":"Telefon läkare"}]